Workbook

Sheet 2020
B1: Residential | C1: General Service <50kW | D1: General Service 50-4999kW | E1: Large User | F1: Streetlight | G1: USL | H1: Total | I1: Rank
A2: 1 | B2: 39586.03843 | C2: 16106.82223 | D2: 41172.81539 | E2: 21906.67036 | F2: 358.135074 | G2: 141.5758587 | H2: 119272.0573 | I2: 1
A3: 2 | B3: 35793.03095 | C3: 15072.62286 | D3: 39058.65191 | E3: 22201.83951 | F3: 67.42747023 | G3: 141.5758587 | H3: 112335.1486 | I3: 4
A4: 3 | B4: 38077.40104 | C4: 13215.56014 | D4: 35192.52602 | E4: 19561.43593 | F4: 287.0558259 | G4: 141.5758587 | H4: 106475.5548 | I4: 6
A5: 4 | B5: 27718.17782 | C5: 9748.915047 | D5: 28033.98879 | E5: 15878.82427 | F5: 0 | G5: 141.5758587 | H5: 81521.48178 | I5: 11
A6: 5 | B6: 18268.1287 | C6: 10791.16141 | D6: 28763.74212 | E6: 20583.14533 | F6: 0 | G6: 141.5758587 | H6: 78547.7534 | I6: 12
A7: 6 | B7: 23559.26353 | C7: 13761.89117 | D7: 34208.3652 | E7: 24523.38228 | F7: 0 | G7: 141.5758587 | H7: 96194.47803 | I7: 9
A8: 7 | B8: 29982.22276 | C8: 15501.6061 | D8: 40000.37888 | E8: 26622.12339 | F8: 0 | G8: 141.5758587 | H8: 112247.907 | I8: 5
A9: 8 | B9: 28621.49908 | C9: 16473.7926 | D9: 42835.69933 | E9: 27192.3539 | F9: 0 | G9: 141.5758587 | H9: 115264.9208 | I9: 3
A10: 9 | B10: 23282.11654 | C10: 15021.04737 | D10: 40127.03184 | E10: 26188.55322 | F10: 0 | G10: 141.5758587 | H10: 104760.3248 | I10: 8
A11: 10 | B11: 19299.45417 | C11: 18590.03801 | D11: 32290.36218 | E11: 17869.1726 | F11: 0 | G11: 141.5758587 | H11: 88190.60282 | I11: 10
A12: 11 | B12: 35525.13793 | C12: 13389.89563 | D12: 35689.2378 | E12: 19712.78232 | F12: 425.5625442 | G12: 141.5758587 | H12: 104884.1921 | I12: 7
A13: 12 | B13: 40374.21541 | C13: 15214.85324 | D13: 39688.66056 | E13: 20163.68649 | F13: 469.5142995 | G13: 141.5758587 | H13: 116052.5059 | I13: 2
A15: 1CP | B15: 39586.03843 | C15: 16106.82223 | D15: 41172.81539 | E15: 21906.67036 | F15: 358.135074 | G15: 141.5758587 | H15: 119272.0573
A16: 4CP | B16: =B2+B13+B3+B9 -> 144374.7839 | C16: =C2+C13+C3+C9 -> 62868.09092 | D16: 162755.8272 | E16: 91464.55026 | F16: 895.0768438 | G16: 566.3034349 | H16: 462924.6325
A17: 12CP | B17: =SUM(B2:B13) -> 360086.6864 | C17: =SUM(C2:C13) -> 172888.2058 | D17: 437061.46 | E17: 262403.9696 | F17: 1607.695214 | G17: =SUM(G2:G13) -> 1698.910305 | H17: 1235746.927
B20: Residential | C20: General Service <50kW | D20: General Service 50-4999kW | E20: Large User | F20: Streetlight | G20: USL | H20: Total
A21: 1 | B21: 43861.80401 | C21: 17187.82953 | D21: 44242.1683 | E21: 24442.69898 | F21: 469.5142995 | G21: 141.5758587 | H21: =SUM(B21:G21) -> 130345.591
A22: 2 | B22: 39581.53173 | C22: 16625.81958 | D22: 41903.31718 | E22: 24125.23735 | F22: 469.5142995 | G22: 141.5758587 | H22: =SUM(B22:G22) -> 122846.996
A23: 3 | B23: 38077.40104 | C23: 15506.52658 | D23: 39804.39079 | E23: 23697.7575 | F23: 469.5142995 | G23: 141.5758587 | H23: 117697.1661
A24: 4 | B24: 27942.53556 | C24: 10965.6095 | D24: 29750.662 | E24: 17272.9814 | F24: 469.5142995 | G24: 141.5758587 | H24: 86542.87863
A25: 5 | B25: 24860.11799 | C25: 12095.96142 | D25: 31004.69349 | E25: 20733.65709 | F25: 469.5142995 | G25: 141.5758587 | H25: 89305.52015
A26: 6 | B26: 31067.89133 | C26: 14755.69461 | D26: 36617.90504 | E26: 24523.38228 | F26: 469.5142995 | G26: 141.5758587 | H26: 107575.9634
A27: 7 | B27: 32660.53627 | C27: 16083.52754 | D27: 40235.87376 | E27: 27428.00663 | F27: 469.5142995 | G27: 141.5758587 | H27: 117019.0344
A28: 8 | B28: 32401.41335 | C28: 16473.7926 | D28: 42835.69933 | E28: 27192.3539 | F28: 469.5142995 | G28: 141.5758587 | H28: 119514.3493
A29: 9 | B29: 29435.98149 | C29: 15021.04737 | D29: 40214.11759 | E29: 26639.45979 | F29: 469.5142995 | G29: 141.5758587 | H29: 111921.6964
A30: 10 | B30: 27348.07256 | C30: 18590.03801 | D30: 34183.91474 | E30: 21565.26407 | F30: 469.5142995 | G30: 141.5758587 | H30: 102298.3795
A31: 11 | B31: 36359.14401 | C31: 14491.93544 | D31: 39913.12969 | E31: 20734.61323 | F31: 469.5142995 | G31: 141.5758587 | H31: 112109.9125
A32: 12 | B32: 40374.21541 | C32: 16436.995 | D32: 42231.48924 | E32: 21272.25849 | F32: 469.5142995 | G32: 141.5758587 | H32: 120926.0483
A34: 1NCP | B34: =MAX(B21:B32) -> 43861.80401 | C34: =MAX(C21:C32) -> 18590.03801 | D34: 44242.1683 | E34: 27428.00663 | F34: 469.5142995 | G34: 141.5758587 | H34: =SUM(B34:G34) -> 134733.1071
A35: 4NCP | B35: =LARGE(B21:B32,1)+LARGE(B21:B32,2)+LARGE(B21:B32,3)+LARGE(B21:B32,4) -> 161894.9522 | C35: =LARGE(C21:C32,1)+LARGE(C21:C32,2)+LARGE(C21:C32,3)+LARGE(C21:C32,4) -> 68877.47972 | D35: 171212.674 | E35: 105783.2026 | F35: 1878.057198 | G35: 566.3034349 | H35: =SUM(B35:G35) -> 510212.6692
A36: 12NCP | B36: =SUM(B21:B32) -> 403970.6447 | C36: =SUM(C21:C32) -> 184234.7772 | D36: 462937.3612 | E36: 279627.6707 | F36: 5634.171594 | G36: 1698.910305 | H36: 1338103.536

Sheet 2021
B1: Residential | C1: General Service <50kW | D1: General Service 50-4999kW | E1: Large User | F1: Streetlight | G1: USL | H1: Total | I1: Rank
A2: 1 | B2: 46007.42727 | C2: 13608.55439 | D2: 36530.45379 | E2: 18888.21764 | F2: 470.9235897 | G2: 141.9637378 | H2: 115647.5404 | I2: 1
A3: 2 | B3: 35867.87996 | C3: 15545.26067 | D3: 39752.2343 | E3: 21139.59762 | F3: 0 | G3: 141.9637378 | H3: 112446.9363 | I3: 2
A4: 3 | B4: 39281.78003 | C4: 13555.44251 | D4: 36496.12605 | E4: 19412.6382 | F4: 277.3216695 | G4: 141.9637378 | H4: 109165.2722 | I4: 4
A5: 4 | B5: 23768.90559 | C5: 13200.6381 | D5: 32645.32823 | E5: 19715.38985 | F5: 0 | G5: 141.9637378 | H5: 89472.22552 | I5: 11
A6: 5 | B6: 16401.0965 | C6: 12552.54188 | D6: 33144.50306 | E6: 22060.28495 | F6: 0 | G6: 141.9637378 | H6: 84300.39013 | I6: 12
A7: 6 | B7: 21416.80921 | C7: 13407.25722 | D7: 35345.42377 | E7: 19333.77164 | F7: 0 | G7: 141.9637378 | H7: 89645.22557 | I7: 10
A8: 7 | B8: 26030.66879 | C8: 16077.09834 | D8: 39795.00248 | E8: 25441.51239 | F8: 0 | G8: 141.9637378 | H8: 107486.2457 | I8: 5
A9: 8 | B9: 26147.3596 | C9: 15876.50387 | D9: 41065.04681 | E9: 23034.13957 | F9: 0 | G9: 141.9637378 | H9: 106265.0136 | I9: 7
A10: 9 | B10: 21074.90033 | C10: 14887.08391 | D10: 39647.92955 | E10: 26610.41666 | F10: 0 | G10: 141.9637378 | H10: 102362.2942 | I10: 8
A11: 10 | B11: 30108.07773 | C11: 10942.03146 | D11: 32402.13022 | E11: 18461.02174 | F11: 0 | G11: 141.9637378 | H11: 92055.22488 | I11: 9
A12: 11 | B12: 38610.017 | C12: 12084.23248 | D12: 36458.38184 | E12: 19455.03584 | F12: 470.9235897 | G12: 141.9637378 | H12: 107220.5545 | I12: 6
A13: 12 | B13: 36836.67197 | C13: 13839.36823 | D13: 37975.72074 | E13: 20624.4815 | F13: 470.9235897 | G13: 141.9637378 | H13: 109889.1298 | I13: 3
A15: 1CP | B15: 46007.42727 | C15: 13608.55439 | D15: 36530.45379 | E15: 18888.21764 | F15: 470.9235897 | G15: 141.9637378 | H15: 115647.5404
A16: 4CP | B16: =B2+B4+B3+B13 -> 157993.7592 | C16: =C2+C4+C3+C13 -> 56548.6258 | D16: 150754.5349 | E16: 80064.93496 | F16: 1219.168849 | G16: 567.8549511 | H16: 447148.8787
A17: 12CP | B17: =SUM(B2:B13) -> 361551.594 | C17: =SUM(C2:C13) -> 165576.0131 | D17: 441258.2808 | E17: 254176.5076 | F17: 1690.092439 | G17: =SUM(G2:G13) -> 1703.564853 | H17: 1225956.053
B20: Residential | C20: General Service <50kW | D20: General Service 50-4999kW | E20: Large User | F20: Streetlight | G20: USL | H20: Total
A21: 1 | B21: 46007.42727 | C21: 15255.86784 | D21: 39542.73587 | E21: 20444.09394 | F21: 470.9235897 | G21: 141.9637378 | H21: =SUM(B21:G21) -> 121863.0122
A22: 2 | B22: 41732.83091 | C22: 15761.54909 | D22: 40532.99746 | E22: 21139.59762 | F22: 470.9235897 | G22: 141.9637378 | H22: =SUM(B22:G22) -> 119779.8624
A23: 3 | B23: 39281.78003 | C23: 15640.05027 | D23: 38918.1812 | E23: 21008.10252 | F23: 470.9235897 | G23: 141.9637378 | H23: 115461.0013
A24: 4 | B24: 29225.94336 | C24: 13200.6381 | D24: 32965.01504 | E24: 20015.44233 | F24: 470.9235897 | G24: 141.9637378 | H24: 96019.92615
A25: 5 | B25: 23132.75171 | C25: 12578.80879 | D25: 33144.50306 | E25: 22060.28495 | F25: 470.9235897 | G25: 141.9637378 | H25: 91529.23585
A26: 6 | B26: 29707.08788 | C26: 15096.889 | D26: 36748.51365 | E26: 23908.84476 | F26: 470.9235897 | G26: 141.9637378 | H26: 106074.2226
A27: 7 | B27: 32420.54918 | C27: 16463.76533 | D27: 40192.85373 | E27: 26569.12225 | F27: 470.9235897 | G27: 141.9637378 | H27: 116259.1778
A28: 8 | B28: 31896.78011 | C28: 21073.79029 | D28: 41695.92894 | E28: 26710.68725 | F28: 470.9235897 | G28: 141.9637378 | H28: 121990.0739
A29: 9 | B29: 27941.25233 | C29: 14887.08391 | D29: 39647.92955 | E29: 26730.24249 | F29: 470.9235897 | G29: 141.9637378 | H29: 109819.3956
A30: 10 | B30: 30108.07773 | C30: 12982.45703 | D30: 35192.07228 | E30: 23863.48904 | F30: 470.9235897 | G30: 141.9637378 | H30: 102758.9834
A31: 11 | B31: 38610.017 | C31: 13959.80107 | D31: 36995.05548 | E31: 21995.76475 | F31: 470.9235897 | G31: 141.9637378 | H31: 112173.5256
A32: 12 | B32: 37461.55932 | C32: 16624.31868 | D32: 42502.52773 | E32: 22072.48643 | F32: 470.9235897 | G32: 141.9637378 | H32: 119273.7795
A34: 1NCP | B34: =MAX(B21:B32) -> 46007.42727 | C34: =MAX(C21:C32) -> 21073.79029 | D34: 42502.52773 | E34: 26730.24249 | F34: 470.9235897 | G34: 141.9637378 | H34: =SUM(B34:G34) -> 136926.8751
A35: 4NCP | B35: =LARGE(B21:B32,1)+LARGE(B21:B32,2)+LARGE(B21:B32,3)+LARGE(B21:B32,4) -> 165632.0552 | C35: =LARGE(C21:C32,1)+LARGE(C21:C32,2)+LARGE(C21:C32,3)+LARGE(C21:C32,4) -> 69923.4234 | D35: 164924.3079 | E35: 103918.8968 | F35: 1883.694359 | G35: 567.8549511 | H35: =SUM(B35:G35) -> 506850.2325
A36: 12NCP | B36: =SUM(B21:B32) -> 407526.0568 | C36: =SUM(C21:C32) -> 183525.0194 | D36: 458078.314 | E36: 276518.1583 | F36: 5651.083077 | G36: 1703.564853 | H36: 1333002.196
